[Event "2nd Hersonissos Open 2018"]
[Site "Hersonissos"]
[Date "2018.06.22"]
[Round "7"]
[White "Mateev, Kaloyan Mateev"]
[Black "Angermuende, Dirk"]
[Result "1/2-1/2"]
[ECO "A01"]
[WhiteElo "1539"]
[BlackElo "1966"]
[Annotator "NA"]
[PlyCount "113"]
[EventDate "2018.06.16"]
[EventType "swiss"]
[EventCountry "GRE"]
[SourceTitle "playchess.com"]
[Source "ChessBase"]
[SourceQuality "1"]
[TimeControl "5400+30"]

1. b3 {[%emt 0:01:34]} e6 {[%emt 0:00:34]} 2. Bb2 {[%emt 0:00:32]} Nf6 {[%emt 0:00:08]} 3. e3 {[%emt 0:00:27]} b6 {[%emt 0:00:16]} 4. Nf3 {[%emt 0:01:16]} Bb7 {[%emt 0:00:07]} 5. d4 {[%emt 0:00:34]} Be7 {[%emt 0:00:51]} 6. Bd3 {[%emt 0:01:49]} O-O {[%emt 0:00:43]} 7. Nbd2 {[%emt 0:00:13]} d5 {[%emt 0:00:14]} 8. O-O {[%emt 0:01:42]} Nbd7 {[%emt 0:00:13]} 9. Ne5 {[%emt 0:01:04]} Nxe5 {[%emt 0:00:30]} 10. dxe5 {[%emt 0:00:14]} Ne4 {[%emt 0:01:18]} 11. a3 {[%emt 0:03:19]} c5 {[%emt 0:01:41]} 12. f3 {[%emt 0:01:06]} Nxd2 {[%emt 0:00:13]} 13. Qxd2 {[%emt 0:00:03]} Rc8 {[%emt 0:01:49]} 14. Qe2 {[%emt 0:04:21]} Qc7 {[%emt 0:01:47]} 15. c4 {[%emt 0:04:14]} Rfd8 {[%emt 0:00:54]} 16. Rad1 {[%emt 0:00:47]} Bf8 {[%emt 0:01:22]} 17. f4 {[%emt 0:01:06]} g6 {[%emt 0:00:38]} 18. h4 {[%emt 0:02:59]} Bg7 {[%emt 0:02:21]} 19. h5 {[%emt 0:01:03]} dxc4 {[%emt 0:00:26]} 20. bxc4 {[%emt 0:00:26]} Rd7 {[%emt 0:03:47]} 21. hxg6 {[%emt 0:00:54]} hxg6 {[%emt 0:00:24]} 22. e4 {[%emt 0:05:47]} Rcd8 {[%emt 0:03:06]} 23. Rf3 {[%emt 0:03:34]} b5 {[%emt 0:01:46]} 24. cxb5 {[%emt 0:06:04]} c4 {[%emt 0:00:25]} 25. Bc2 {[%emt 0:00:13]} Rxd1+ {[%emt 0:00:59]} 26. Bxd1 {[%emt 0:02:02]} Qc5+ {[%emt 0:01:16]} 27. Kh2 {[%emt 0:02:10]} Qxb5 {[%emt 0:00:42]} 28. a4 {[%emt 0:05:33]} Qd7 {[%emt 0:20:30]} 29. Bc2 {[%emt 0:00:28]} Qd2 {[%emt 0:03:08]} 30. Rf2 {[%emt 0:03:03]} Qb4 {[%emt 0:02:43]} 31. Bc1 {[%emt 0:05:05]} Bc6 {[%emt 0:02:23]} 32. Bd2 {[%emt 0:03:21]} c3 {[%emt 0:01:30]} 33. Be1 {[%emt 0:03:59]} Rd4 {[%emt 0:16:50]} 34. Qa6 {[%emt 0:01:48]} Bxa4 {[%emt 0:16:31]} 35. Qc8+ {[%emt 0:01:42]} Bf8 {[%emt 0:00:07]} 36. Bxc3 {[%emt 0:15:22]} Qc4 {[%emt 0:00:23]} 37. Qxc4 {[%emt 0:00:33]} Rxc4 {[%emt 0:00:06]} 38. Bxa4 {[%emt 0:00:21]} Rxa4 {[%emt 0:00:06]} 39. Re2 {[%emt 0:05:46]} Bc5 {[%emt 0:03:31]} 40. g3 {[%emt 0:00:00]} a5 {[%emt 0:00:00]} 41. Kg2 {[%emt 0:00:00]} Ra3 {[%emt 0:00:00]} 42. Bb2 {[%emt 0:00:00]} Ra2 {[%emt 0:00:00]} 43. Kf3 {[%emt 0:00:00]} a4 {[%emt 0:00:00]} 44. Rc2 {[%emt 0:00:00]} Bb4 {[%emt 0:00:00]} 45. Rc8+ {[%emt 0:00:00]} Kg7 {[%emt 0:00:00]} 46. Bd4 {[%emt 0:00:00]} a3 {[%emt 0:00:51]} 47. Bc5 {[%emt 0:00:00]} Bxc5 {[%emt 0:02:34]} 48. Rxc5 Rb2 49. Ra5 {[%emt 0:00:00]} a2 {[%emt 0:00:36]} 50. Ra4 {[%emt 0:00:00]} Kf8 {[%emt 0:00:48]} 51. Kg4 Kg7 {[%emt 0:00:43]} 52. Kg5 {[%emt 0:00:51]} Rg2 {[%emt 0:00:52]} 53. g4 {[%emt 0:01:06]} Re2 {[%emt 0:02:58]} 54. f5 {[%emt 0:02:02]} gxf5 {[%emt 0:03:06]} 55. exf5 {[%emt 0:05:15]} Rxe5 {[%emt 0:00:35]} 56. Rxa2 exf5 57. gxf5 {[%emt 0:02:45]} 1/2-1/2

[Event "2nd Hersonissos Open 2018"]
[Site "Hersonissos"]
[Date "2018.06.22"]
[Round "7"]
[White "Dagkonaki, Antonia"]
[Black "Stefanov, Evtim"]
[Result "0-1"]
[ECO "B43"]
[WhiteElo "1383"]
[BlackElo "1959"]
[Annotator "NA"]
[PlyCount "70"]
[EventDate "2018.06.16"]
[EventType "swiss"]
[EventCountry "GRE"]
[SourceTitle "playchess.com"]
[Source "ChessBase"]
[SourceQuality "1"]
[TimeControl "5400+30"]

1. e4 {[%emt 0:00:00]} c5 {[%emt 0:09:49]} 2. Nf3 {[%emt 0:00:00]} e6 {[%emt 0:00:08]} 3. d4 {[%emt 0:00:00]} cxd4 {[%emt 0:00:06]} 4. Nxd4 {[%emt 0:00:05]} a6 {[%emt 0:00:11]} 5. Nc3 {[%emt 0:02:31]} Qc7 {[%emt 0:00:08]} 6. Bd2 {[%emt 0:01:24]} Nf6 {[%emt 0:00:36]} 7. g3 {[%emt 0:05:50]} b5 {[%emt 0:02:29]} 8. Bd3 {[%emt 0:09:05]} Bb7 {[%emt 0:02:21]} 9. Qe2 {[%emt 0:07:01]} Bc5 {[%emt 0:01:15]} 10. Nb3 {[%emt 0:02:05]} Be7 {[%emt 0:00:09]} 11. Rf1 {[%emt 0:01:12]} Nc6 {[%emt 0:00:55]} 12. f4 {[%emt 0:08:56]} d6 {[%emt 0:01:40]} 13. Nd1 {[%emt 0:05:25]} Nd7 {[%emt 0:06:36]} 14. c4 {[%emt 0:01:59]} b4 {[%emt 0:03:40]} 15. Rc1 {[%emt 0:02:48]} a5 {[%emt 0:01:32]} 16. Be3 {[%emt 0:00:22]} Rd8 {[%emt 0:03:42]} 17. c5 {[%emt 0:07:04]} dxc5 {[%emt 0:03:46]} 18. Nxc5 {[%emt 0:00:13]} Nxc5 {[%emt 0:00:07]} 19. Bxc5 {[%emt 0:00:06]} Bxc5 {[%emt 0:00:06]} 20. Rxc5 {[%emt 0:00:09]} Qd6 {[%emt 0:00:19]} 21. Rb5 {[%emt 0:07:00]} Ba6 {[%emt 0:00:42]} 22. Rd5 {[%emt 0:01:18]} exd5 {[%emt 0:01:02]} 23. exd5+ {[%emt 0:00:26]} Ne7 {[%emt 0:00:24]} 24. Bxa6 {[%emt 0:00:37]} O-O {[%emt 0:00:08]} 25. Kf2 {[%emt 0:03:55]} Nxd5 {[%emt 0:00:18]} 26. Re1 {[%emt 0:03:07]} Nf6 {[%emt 0:01:08]} 27. Ne3 {[%emt 0:06:30]} Qc5 {[%emt 0:00:59]} 28. Qc4 {[%emt 0:01:47]} Qb6 {[%emt 0:01:41]} 29. Qb5 {[%emt 0:04:40]} Qd4 {[%emt 0:00:34]} 30. Qxa5 {[%emt 0:02:39]} Rfe8 {[%emt 0:01:13]} 31. Kf1 {[%emt 0:03:59]} Qe4 {[%emt 0:02:09]} 32. Ng2 {[%emt 0:02:27]} Qf3+ {[%emt 0:00:26]} 33. Kg1 {[%emt 0:00:11]} Rd2 {[%emt 0:02:46]} 34. Rxe8+ {[%emt 0:00:54]} Nxe8 {[%emt 0:00:07]} 35. Bb7 {[%emt 0:07:12]} Rd1+ {[%emt 0:00:23]} 0-1

[Event "2nd Hersonissos Open 2018"]
[Site "Hersonissos"]
[Date "2018.06.22"]
[Round "7"]
[White "Koutsouraki, Ariadni"]
[Black "Bras, Emanouel"]
[Result "0-1"]
[ECO "B13"]
[WhiteElo "1373"]
[BlackElo "1859"]
[Annotator "NA"]
[PlyCount "62"]
[EventDate "2018.06.16"]
[EventType "swiss"]
[EventCountry "GRE"]
[SourceTitle "playchess.com"]
[Source "ChessBase"]
[SourceQuality "1"]
[TimeControl "5400+30"]

1. e4 {[%emt 0:00:00]} c6 {[%emt 0:05:34]} 2. d4 {[%emt 0:00:00]} d5 {[%emt 0:00:06]} 3. exd5 {[%emt 0:00:29]} cxd5 {[%emt 0:00:10]} 4. Nf3 {[%emt 0:02:16]} Nc6 {[%emt 0:00:20]} 5. c3 {[%emt 0:02:17]} Nf6 {[%emt 0:00:10]} 6. Bd3 {[%emt 0:00:33]} Bg4 {[%emt 0:00:20]} 7. h3 {[%emt 0:00:41]} Bh5 {[%emt 0:02:45]} 8. Nbd2 {[%emt 0:06:10]} e6 {[%emt 0:01:08]} 9. O-O {[%emt 0:02:48]} Bd6 {[%emt 0:00:16]} 10. Re1 {[%emt 0:02:10]} O-O {[%emt 0:00:29]} 11. Be2 {[%emt 0:02:53]} Bg6 {[%emt 0:04:37]} 12. b3 {[%emt 0:10:24]} Rc8 {[%emt 0:07:24]} 13. Bb2 {[%emt 0:02:34]} Nh5 {[%emt 0:05:16]} 14. Nf1 {[%emt 0:03:54]} Nf4 {[%emt 0:01:21]} 15. Bc1 {[%emt 0:04:24]} Ne7 {[%emt 0:13:03]} 16. Bb2 {[%emt 0:05:46]} Nf5 {[%emt 0:02:32]} 17. Ne3 {[%emt 0:00:58]} Nxe3 {[%emt 0:05:23]} 18. fxe3 {[%emt 0:00:17]} Nxe2+ {[%emt 0:01:42]} 19. Qxe2 {[%emt 0:01:03]} Be4 {[%emt 0:05:52]} 20. Qf2 {[%emt 0:02:54]} Bb8 {[%emt 0:05:13]} 21. Rec1 {[%emt 0:05:26]} Bxf3 {[%emt 0:03:51]} 22. Qxf3 {[%emt 0:00:52]} Qd6 {[%emt 0:00:32]} 23. Kf1 {[%emt 0:02:00]} f5 {[%emt 0:00:45]} 24. Ke2 {[%emt 0:01:24]} f4 {[%emt 0:03:08]} 25. Rf1 {[%emt 0:05:05]} Qa6+ {[%emt 0:03:26]} 26. Kd2 {[%emt 0:02:21]} fxe3+ {[%emt 0:06:54]} 27. Qxe3 {[%emt 0:00:08]} e5 {[%emt 0:01:49]} 28. Rxf8+ {[%emt 0:04:21]} Rxf8 {[%emt 0:00:14]} 29. dxe5 {[%emt 0:01:19]} Bxe5 {[%emt 0:03:55]} 30. Kc2 {[%emt 0:03:32]} Qg6+ {[%emt 0:00:51]} 31. Kd1 {[%emt 0:00:49]} Qxg2 {[%emt 0:01:47]} 0-1

[Event "2nd Hersonissos Open 2018"]
[Site "Hersonissos"]
[Date "2018.06.23"]
[Round "8"]
[White "Lirindzakis, Timotheos"]
[Black "Kadianis, Georgios"]
[Result "0-1"]
[ECO "D10"]
[WhiteElo "2163"]
[BlackElo "1917"]
[Annotator "NA"]
[PlyCount "60"]
[EventDate "2018.06.23"]
[EventType "swiss"]
[EventCountry "GRE"]
[SourceTitle "playchess.com"]
[Source "ChessBase"]
[SourceQuality "1"]
[TimeControl "5400+30"]

1. d4 {[%emt 0:00:00]} d5 {[%emt 0:00:05]} 2. c4 {[%emt 0:00:00]} c6 {[%emt 0:00:04]} 3. cxd5 {[%emt 0:00:00]} cxd5 {[%emt 0:00:04]} 4. Bf4 {[%emt 0:00:00]} Nc6 {[%emt 0:00:14]} 5. e3 {[%emt 0:00:03]} Nf6 {[%emt 0:00:13]} 6. Nc3 {[%emt 0:00:03]} Bg4 {[%emt 0:00:58]} 7. Qb3 {[%emt 0:01:25]} Na5 {[%emt 0:00:31]} 8. Qa4+ {[%emt 0:00:45]} Bd7 {[%emt 0:01:14]} 9. Qd1 {[%emt 0:02:34]} e6 {[%emt 0:01:38]} 10. Bd3 {[%emt 0:02:17]} Bb4 {[%emt 0:01:21]} 11. Nf3 {[%emt 0:15:10]} Rc8 {[%emt 0:02:55]} 12. O-O {[%emt 0:07:02]} O-O {[%emt 0:03:55]} 13. Rc1 {[%emt 0:03:43]} Bxc3 {[%emt 0:04:11]} 14. Rxc3 {[%emt 0:01:31]} Rxc3 {[%emt 0:07:15]} 15. bxc3 {[%emt 0:00:03]} Qe7 {[%emt 0:07:04]} 16. Qb1 {[%emt 0:14:43]} h6 {[%emt 0:02:03]} 17. Ne5 {[%emt 0:10:08]} Rc8 {[%emt 0:02:49]} 18. Rc1 {[%emt 0:02:37]} Qa3 {[%emt 0:06:50]} 19. c4 {[%emt 0:08:16]} dxc4 {[%emt 0:12:20]} 20. Nxc4 {[%emt 0:00:34]} Nxc4 {[%emt 0:00:41]} 21. Rxc4 {[%emt 0:00:19]} Rxc4 {[%emt 0:00:44]} 22. Bxc4 {[%emt 0:00:02]} Qc3 {[%emt 0:03:09]} 23. Bf1 {[%emt 0:14:16]} Bc6 {[%emt 0:04:21]} 24. Bd6 {[%emt 0:01:18]} a5 {[%emt 0:05:27]} 25. Qd3 {[%emt 0:10:33]} Qa1 {[%emt 0:13:13]} 26. a3 {[%emt 0:01:08]} Ne4 {[%emt 0:06:49]} 27. Bc7 {[%emt 0:00:14]} Qb2 {[%emt 0:02:32]} 28. Bxa5 {[%emt 0:01:28]} Qxf2+ {[%emt 0:00:45]} 29. Kh1 {[%emt 0:00:01]} Ng5 {[%emt 0:04:01]} 30. h3 {[%emt 0:04:09]} Nf3 {[%emt 0:02:01]} 0-1

[Event "2nd Hersonissos Open 2018"]
[Site "Hersonissos"]
[Date "2018.06.23"]
[Round "8"]
[White "Serpetsidakis, Nikolaos"]
[Black "Parker, Keith"]
[Result "1-0"]
[ECO "A40"]
[WhiteElo "2126"]
[BlackElo "1846"]
[Annotator "NA"]
[PlyCount "74"]
[EventDate "2018.06.23"]
[EventType "swiss"]
[EventCountry "GRE"]
[SourceTitle "playchess.com"]
[Source "ChessBase"]
[SourceQuality "1"]
[TimeControl "5400+30"]

1. d4 {[%emt 0:00:00]} c6 {[%emt 0:00:04]} 2. c4 {[%emt 0:00:00]} Nf6 {[%emt 0:00:10]} 3. Nf3 {[%emt 0:03:03]} g6 {[%emt 0:01:27]} 4. Nc3 {[%emt 0:01:11]} d5 {[%emt 0:00:55]} 5. e3 {[%emt 0:05:31]} Bg7 {[%emt 0:00:28]} 6. Bd3 {[%emt 0:00:17]} dxc4 {[%emt 0:01:08]} 7. Bxc4 {[%emt 0:00:06]} O-O {[%emt 0:00:19]} 8. O-O {[%emt 0:00:17]} Bg4 {[%emt 0:00:43]} 9. h3 {[%emt 0:01:14]} Bxf3 {[%emt 0:00:03]} 10. Qxf3 {[%emt 0:00:05]} Nbd7 {[%emt 0:04:16]} 11. Rd1 {[%emt 0:03:52]} e5 {[%emt 0:03:19]} 12. Bb3 {[%emt 0:04:10]} exd4 {[%emt 0:07:30]} 13. exd4 {[%emt 0:00:21]} Nb6 {[%emt 0:01:22]} 14. Bg5 {[%emt 0:01:07]} Qd6 {[%emt 0:00:59]} 15. Bf4 {[%emt 0:05:29]} Qd7 {[%emt 0:05:43]} 16. Rac1 {[%emt 0:00:42]} Rac8 {[%emt 0:09:50]} 17. Be5 {[%emt 0:01:46]} Nbd5 {[%emt 0:04:44]} 18. Rc2 {[%emt 0:05:58]} Rfe8 {[%emt 0:04:24]} 19. Re2 {[%emt 0:04:38]} Re7 {[%emt 0:05:48]} 20. g4 {[%emt 0:14:37]} Rce8 {[%emt 0:06:48]} 21. Rde1 {[%emt 0:05:13]} Nxc3 {[%emt 0:06:40]} 22. bxc3 {[%emt 0:02:49]} Nd5 {[%emt 0:00:38]} 23. c4 {[%emt 0:13:13]} Nc7 {[%emt 0:07:39]} 24. c5 {[%emt 0:09:52]} Nd5 {[%emt 0:05:24]} 25. Kf1 {[%emt 0:05:13]} Re6 {[%emt 0:05:47]} 26. Qd3 {[%emt 0:04:24]} Bxe5 {[%emt 0:06:58]} 27. dxe5 {[%emt 0:00:10]} Rd8 {[%emt 0:01:39]} 28. Rd1 {[%emt 0:01:38]} Qe7 {[%emt 0:01:01]} 29. Qd4 {[%emt 0:01:07]} Qh4 {[%emt 0:03:32]} 30. Kg2 {[%emt 0:01:27]} Qg5 {[%emt 0:00:42]} 31. Kg3 {[%emt 0:01:28]} h5 {[%emt 0:03:11]} 32. f4 {[%emt 0:00:13]} h4+ {[%emt 0:00:49]} 33. Kh2 {[%emt 0:01:18]} Qh6 {[%emt 0:00:59]} 34. Rf2 {[%emt 0:01:57]} Ree8 {[%emt 0:00:37]} 35. Qa4 {[%emt 0:01:41]} Qf8 {[%emt 0:00:43]} 36. Bxd5 {[%emt 0:00:44]} Qxc5 {[%emt 0:01:35]} 37. Rc2 {[%emt 0:01:07]} Qb6 1-0

[Event "2nd Hersonissos Open 2018"]
[Site "Hersonissos"]
[Date "2018.06.23"]
[Round "8"]
[White "Angermuende, Dirk"]
[Black "Brokalakis - Gounaris, Christos"]
[Result "0-1"]
[ECO "C36"]
[WhiteElo "1966"]
[BlackElo "1851"]
[Annotator "NA"]
[PlyCount "84"]
[EventDate "2018.06.23"]
[EventType "swiss"]
[EventCountry "GRE"]
[SourceTitle "playchess.com"]
[Source "ChessBase"]
[SourceQuality "1"]
[TimeControl "5400+30"]

1. e4 {[%emt 0:00:00]} e5 {[%emt 0:00:08]} 2. f4 {[%emt 0:00:00]} d5 {[%emt 0:00:31]} 3. exd5 {[%emt 0:00:04]} exf4 {[%emt 0:00:37]} 4. Nf3 {[%emt 0:00:19]} Nf6 {[%emt 0:00:55]} 5. Bb5+ {[%emt 0:02:20]} Bd7 {[%emt 0:11:21]} 6. Bc4 {[%emt 0:00:49]} Bd6 {[%emt 0:00:47]} 7. Nc3 {[%emt 0:04:54]} O-O {[%emt 0:01:21]} 8. O-O {[%emt 0:00:08]} c6 {[%emt 0:01:56]} 9. d4 {[%emt 0:03:16]} cxd5 {[%emt 0:01:56]} 10. Nxd5 {[%emt 0:01:09]} Nc6 {[%emt 0:03:51]} 11. Bxf4 {[%emt 0:07:28]} Bxf4 {[%emt 0:29:10]} 12. Nxf4 {[%emt 0:00:59]} Bg4 {[%emt 0:00:59]} 13. c3 {[%emt 0:03:29]} Qd6 {[%emt 0:06:21]} 14. Ne2 {[%emt 0:03:21]} Rae8 {[%emt 0:01:49]} 15. Qc2 {[%emt 0:01:55]} Bh5 {[%emt 0:04:42]} 16. Ng3 {[%emt 0:02:07]} Bg6 {[%emt 0:04:35]} 17. Bd3 {[%emt 0:04:04]} Nd5 {[%emt 0:01:05]} 18. Bxg6 {[%emt 0:00:32]} fxg6 19. Qd2 {[%emt 0:00:30]} Ne3 20. Rfe1 {[%emt 0:00:30]} Nc4 21. Qc2 {[%emt 0:00:30]} Qf4 {[%emt 0:18:32]} 22. Qb3 {[%emt 0:12:22]} N6a5 {[%emt 0:01:12]} 23. Qb5 {[%emt 0:00:17]} Rxe1+ {[%emt 0:01:19]} 24. Rxe1 {[%emt 0:00:35]} Qf7 {[%emt 0:08:43]} 25. b3 {[%emt 0:12:01]} a6 {[%emt 0:00:28]} 26. Qg5 {[%emt 0:02:26]} h6 {[%emt 0:00:18]} 27. Qe7 {[%emt 0:00:28]} Qxe7 {[%emt 0:00:41]} 28. Rxe7 {[%emt 0:00:08]} Nd6 {[%emt 0:00:29]} 29. Ne5 {[%emt 0:02:36]} Kh7 {[%emt 0:00:42]} 30. Rd7 {[%emt 0:02:22]} Rf6 {[%emt 0:00:29]} 31. Ng4 {[%emt 0:01:27]} Rf4 {[%emt 0:00:24]} 32. Rxd6 {[%emt 0:02:55]} Rxg4 {[%emt 0:00:02]} 33. Rb6 {[%emt 0:00:45]} h5 {[%emt 0:00:18]} 34. b4 {[%emt 0:00:19]} Nc4 {[%emt 0:00:04]} 35. Nf1 {[%emt 0:00:28]} Re4 {[%emt 0:00:41]} 36. Rxb7 {[%emt 0:01:36]} Re1 {[%emt 0:00:22]} 37. Kf2 {[%emt 0:01:51]} Ra1 {[%emt 0:00:06]} 38. Rc7 {[%emt 0:00:26]} Rxa2+ {[%emt 0:00:08]} 39. Kf3 {[%emt 0:00:17]} Nd6 {[%emt 0:00:49]} 40. Ne3 {[%emt 0:00:00]} Ra3 {[%emt 0:00:00]} 41. Nd5 {[%emt 0:00:00]} Nb5 {[%emt 0:00:00]} 42. Rc6 {[%emt 0:00:00]} Nxd4+ {[%emt 0:00:00]} 0-1

[Event "2nd Hersonissos Open 2018"]
[Site "Hersonissos"]
[Date "2018.06.23"]
[Round "8"]
[White "Stefanov, Evtim"]
[Black "Fragiadakis, Emanouel"]
[Result "1-0"]
[ECO "C50"]
[WhiteElo "1959"]
[BlackElo "1813"]
[Annotator "NA"]
[PlyCount "61"]
[EventDate "2018.06.23"]
[EventType "swiss"]
[EventCountry "GRE"]
[SourceTitle "playchess.com"]
[Source "ChessBase"]
[SourceQuality "1"]
[TimeControl "5400+30"]

1. e4 {[%emt 0:00:00]} e5 {[%emt 0:00:03]} 2. Nf3 {[%emt 0:00:55]} Nc6 {[%emt 0:00:18]} 3. Bc4 {[%emt 0:02:11]} Bc5 {[%emt 0:00:05]} 4. O-O {[%emt 0:01:25]} Nf6 {[%emt 0:00:25]} 5. d3 {[%emt 0:00:15]} d6 {[%emt 0:00:09]} 6. Re1 {[%emt 0:07:33]} O-O {[%emt 0:12:41]} 7. Nbd2 {[%emt 0:04:57]} Be6 {[%emt 0:01:01]} 8. c3 {[%emt 0:02:38]} a6 {[%emt 0:04:19]} 9. a4 {[%emt 0:00:49]} Rb8 {[%emt 0:03:23]} 10. a5 {[%emt 0:01:59]} Ba7 {[%emt 0:06:02]} 11. b4 {[%emt 0:05:07]} Qc8 {[%emt 0:10:51]} 12. Nf1 {[%emt 0:05:00]} Ng4 {[%emt 0:01:57]} 13. Re2 {[%emt 0:01:40]} Bxc4 {[%emt 0:01:00]} 14. dxc4 {[%emt 0:00:11]} Qe6 {[%emt 0:03:12]} 15. Qd3 {[%emt 0:03:25]} Ne7 {[%emt 0:07:50]} 16. h3 {[%emt 0:00:47]} Nh6 {[%emt 0:01:43]} 17. g4 {[%emt 0:09:05]} Kh8 {[%emt 0:00:14]} 18. Ng3 {[%emt 0:01:51]} Nhg8 {[%emt 0:05:25]} 19. Kg2 {[%emt 0:02:14]} f6 {[%emt 0:01:45]} 20. b5 {[%emt 0:05:22]} g6 {[%emt 0:08:32]} 21. Rb1 {[%emt 0:02:03]} Bc5 {[%emt 0:01:07]} 22. Nd4 {[%emt 0:20:40]} exd4 {[%emt 0:11:54]} 23. cxd4 {[%emt 0:00:11]} axb5 {[%emt 0:04:10]} 24. cxb5 {[%emt 0:01:36]} f5 {[%emt 0:07:35]} 25. Bb2 {[%emt 0:05:50]} Nf6 {[%emt 0:01:59]} 26. g5 {[%emt 0:01:00]} fxe4 {[%emt 0:01:09]} 27. dxc5 {[%emt 0:06:03]} Kg8 {[%emt 0:03:41]} 28. Bxf6 {[%emt 0:00:39]} d5 {[%emt 0:00:44]} 29. Qd4 {[%emt 0:03:14]} Nf5 {[%emt 0:00:25]} 30. Nxf5 {[%emt 0:00:53]} Qxf5 {[%emt 0:00:07]} 31. Rb3 {[%emt 0:00:50]} 1-0

[Event "2nd Hersonissos Open 2018"]
[Site "Hersonissos"]
[Date "2018.06.23"]
[Round "8"]
[White "Bit-Narva, David"]
[Black "Ranaldi, Lucas"]
[Result "1-0"]
[ECO "B27"]
[WhiteElo "1926"]
[BlackElo "2283"]
[Annotator "NA"]
[PlyCount "106"]
[EventDate "2018.06.23"]
[EventType "swiss"]
[EventCountry "GRE"]
[SourceTitle "playchess.com"]
[Source "ChessBase"]
[SourceQuality "1"]
[TimeControl "5400+30"]

1. e4 {[%emt 0:05:19]} c5 {[%emt 0:04:26]} 2. Nf3 {[%emt 0:00:09]} g6 {[%emt 0:00:17]} 3. Bc4 {[%emt 0:00:44]} Bg7 {[%emt 0:00:45]} 4. O-O {[%emt 0:00:14]} Nc6 {[%emt 0:00:43]} 5. Re1 {[%emt 0:00:45]} e6 {[%emt 0:02:50]} 6. c3 {[%emt 0:00:35]} Nge7 {[%emt 0:02:41]} 7. Bf1 {[%emt 0:08:53]} e5 {[%emt 0:08:32]} 8. d3 {[%emt 0:03:42]} d5 {[%emt 0:02:41]} 9. exd5 {[%emt 0:00:49]} Qxd5 {[%emt 0:00:19]} 10. Nbd2 {[%emt 0:01:48]} O-O {[%emt 0:01:59]} 11. Qb3 {[%emt 0:01:29]} Qd8 {[%emt 0:14:11]} 12. Nc4 {[%emt 0:16:59]} Qc7 {[%emt 0:00:41]} 13. Bg5 {[%emt 0:02:13]} Be6 {[%emt 0:01:52]} 14. Qa3 {[%emt 0:03:44]} f6 {[%emt 0:01:44]} 15. Bd2 {[%emt 0:00:48]} b5 {[%emt 0:23:44]} 16. Ne3 {[%emt 0:07:49]} Qb6 {[%emt 0:00:12]} 17. Nc2 {[%emt 0:17:06]} Bd5 {[%emt 0:17:47]} 18. Be3 {[%emt 0:03:08]} b4 {[%emt 0:00:01]} 19. cxb4 {[%emt 0:00:54]} cxb4 {[%emt 0:00:01]} 20. Qa4 {[%emt 0:00:32]} Qb7 {[%emt 0:00:01]} 21. Nd2 {[%emt 0:02:45]} a5 {[%emt 0:02:29]} 22. Nc4 {[%emt 0:00:46]} Bxc4 {[%emt 0:02:10]} 23. dxc4 {[%emt 0:00:05]} Nf5 {[%emt 0:00:16]} 24. Qb5 {[%emt 0:04:03]} Qc8 {[%emt 0:02:33]} 25. Be2 {[%emt 0:06:39]} Nxe3 {[%emt 0:01:27]} 26. fxe3 {[%emt 0:00:12]} f5 {[%emt 0:01:08]} 27. Rad1 {[%emt 0:01:29]} e4 {[%emt 0:02:56]} 28. Rd6 {[%emt 0:00:30]} Ne5 {[%emt 0:00:48]} 29. Nd4 {[%emt 0:03:08]} Re8 {[%emt 0:03:19]} 30. Qd5+ {[%emt 0:00:31]} Kh8 {[%emt 0:00:11]} 31. Ne6 {[%emt 0:01:17]} Ra7 {[%emt 0:00:44]} 32. Rd1 {[%emt 0:01:38]} Rae7 {[%emt 0:01:19]} 33. Nxg7 {[%emt 0:01:00]} Kxg7 {[%emt 0:00:12]} 34. c5 {[%emt 0:03:46]} Qc7 {[%emt 0:00:42]} 35. c6 {[%emt 0:00:46]} Qa7 {[%emt 0:00:53]} 36. Qd4 {[%emt 0:00:37]} Qxd4 {[%emt 0:00:34]} 37. exd4 {[%emt 0:00:53]} Nf7 {[%emt 0:00:01]} 38. Rd5 {[%emt 0:00:18]} Rc8 {[%emt 0:00:52]} 39. Rc5 {[%emt 0:00:23]} Ra7 {[%emt 0:00:28]} 40. Bc4 {[%emt 0:00:00]} Nd6 {[%emt 0:00:00]} 41. Be6 {[%emt 0:00:00]} Rcc7 {[%emt 0:00:00]} 42. Bd7 {[%emt 0:00:00]} Kf6 {[%emt 0:00:00]} 43. Rdc1 {[%emt 0:00:00]} h5 {[%emt 0:00:00]} 44. Re5 {[%emt 0:00:00]} Nc8 {[%emt 0:00:00]} 45. Re6+ {[%emt 0:00:00]} Kf7 {[%emt 0:00:00]} 46. d5 {[%emt 0:00:00]} Rxd7 {[%emt 0:03:44]} 47. cxd7 {[%emt 0:00:00]} Rxd7 {[%emt 0:00:01]} 48. Rxc8 {[%emt 0:00:00]} Rxd5 {[%emt 0:00:03]} 49. Ra6 {[%emt 0:00:00]} Ke7 {[%emt 0:00:18]} 50. Rc7+ {[%emt 0:00:00]} Kd8 {[%emt 0:00:17]} 51. Rh7 {[%emt 0:00:00]} Rd1+ {[%emt 0:00:05]} 52. Kf2 {[%emt 0:00:00]} Rd2+ {[%emt 0:00:16]} 53. Ke3 {[%emt 0:00:00]} Rd3+ {[%emt 0:00:10] Kxe4} 1-0

[Event "2nd Hersonissos Open 2018"]
[Site "Hersonissos"]
[Date "2018.06.23"]
[Round "8"]
[White "Haverkamp, Klaus, Dr."]
[Black "Risting, Eivind Olav"]
[Result "0-1"]
[ECO "B13"]
[WhiteElo "1921"]
[BlackElo "2301"]
[Annotator "NA"]
[PlyCount "70"]
[EventDate "2018.06.23"]
[EventType "swiss"]
[EventCountry "GRE"]
[SourceTitle "playchess.com"]
[Source "ChessBase"]
[SourceQuality "1"]
[TimeControl "5400+30"]

1. e4 {[%emt 0:03:02]} c6 {[%emt 0:00:06]} 2. d4 {[%emt 0:00:32]} d5 {[%emt 0:00:06]} 3. exd5 {[%emt 0:00:36]} cxd5 {[%emt 0:00:09]} 4. Bd3 {[%emt 0:00:35]} Nc6 {[%emt 0:00:06]} 5. c3 {[%emt 0:00:56]} Nf6 {[%emt 0:00:11]} 6. Bf4 {[%emt 0:02:20]} g6 {[%emt 0:00:39]} 7. Nd2 {[%emt 0:03:22]} Bg7 {[%emt 0:06:09]} 8. Ngf3 {[%emt 0:05:40]} Nh5 {[%emt 0:01:20]} 9. Bg5 {[%emt 0:09:15]} Qd6 {[%emt 0:05:31]} 10. g3 {[%emt 0:12:31]} O-O {[%emt 0:06:27]} 11. O-O {[%emt 0:08:58]} Bg4 {[%emt 0:11:29]} 12. Be2 {[%emt 0:08:32]} Rad8 {[%emt 0:04:30]} 13. Re1 {[%emt 0:02:25]} f6 {[%emt 0:01:40]} 14. Be3 {[%emt 0:01:00]} Kh8 {[%emt 0:09:42]} 15. Nf1 {[%emt 0:05:02]} e5 {[%emt 0:04:43]} 16. Qd2 {[%emt 0:05:03]} e4 {[%emt 0:02:22]} 17. Nh4 {[%emt 0:01:32]} Bxe2 {[%emt 0:02:42]} 18. Rxe2 {[%emt 0:01:05]} f5 {[%emt 0:01:57]} 19. Ng2 {[%emt 0:01:31]} Rc8 {[%emt 0:01:33]} 20. Nf4 {[%emt 0:04:17]} Nf6 {[%emt 0:01:28]} 21. Ng2 {[%emt 0:00:12]} Nd8 {[%emt 0:02:33]} 22. Bh6 {[%emt 0:05:16]} Ne6 {[%emt 0:01:20]} 23. Bxg7+ {[%emt 0:01:32]} Kxg7 {[%emt 0:00:08]} 24. Ne1 {[%emt 0:04:02]} f4 {[%emt 0:01:30]} 25. f3 {[%emt 0:01:08]} Ng5 {[%emt 0:08:40]} 26. Kg2 {[%emt 0:02:58]} exf3+ {[%emt 0:00:34]} 27. Nxf3 {[%emt 0:00:41]} Nxf3 {[%emt 0:00:50]} 28. Kxf3 {[%emt 0:04:36]} Ne4 {[%emt 0:00:18]} 29. Rxe4 {[%emt 0:00:27]} dxe4+ {[%emt 0:00:09]} 30. Kxe4 {[%emt 0:00:32]} Qe6+ {[%emt 0:01:46]} 31. Kd3 {[%emt 0:00:14]} Qf5+ {[%emt 0:00:10]} 32. Ke2 {[%emt 0:00:48]} fxg3 {[%emt 0:00:13]} 33. Nxg3 {[%emt 0:00:48]} Qf3+ {[%emt 0:00:10]} 34. Ke1 {[%emt 0:01:21]} Rce8+ {[%emt 0:00:08]} 35. Qe2 {[%emt 0:00:07]} Rxe2+ {[%emt 0:00:15]} 0-1